bitfinex/quotes_SOLUSD_20250802
["timestamp","ask_amount","ask_price","bid_price","bid_amount"]
[1754178288525,9.4893234,158.98,158.96,0.69]
[1754178288707,8.70306098,158.97,158.94,0.69]
[1754178289298,9.48942232,158.96,158.94,0.69]
[1754178289821,9.48942232,158.96,158.92,0.69]
[1754178290024,8.70306098,158.95,158.93,0.69]
[1754178290526,8.70306098,158.96,158.93,0.69]
[1754178290732,8.70306098,158.97,158.94,0.69]
[1754178290939,47.44611408,159.01,158.95,0.69]
[1754178291107,8.70306098,158.97,158.95,0.69]
[1754178291629,8.70306098,158.99,158.96,0.69]
[1754178291836,8.70306098,158.99,158.94,8.70306098]
[1754178291837,8.70306098,158.99,158.97,0.69]
[1754178294431,8.70306098,158.98,158.97,0.69]
[1754178296063,8.70306098,158.98,158.95,16.844684]
[1754178296260,8.70306098,158.98,158.96,0.69]
[1754178296834,8.70306098,158.99,158.95,16.844684]
[1754178297131,0.81601521,159.03,158.97,0.69]
[1754178297463,0.81601521,159.03,158.98,8.70306098]
[1754178297464,8.73306098,159.03,158.98,8.70306098]
[1754178297635,8.73306098,159.03,158.99,0.69]
[1754178298049,8.70306098,159.02,158.97,25.48774498]
[1754178298248,8.70306098,159.02,159.0,0.69]
[1754178298457,8.70306098,159.02,159.01,0.69]
[1754178298661,8.73306098,159.03,159.01,0.69]
[1754178298846,0.03,159.03,159.02,0.69]
[1754178300456,0.03,159.05,159.02,9.39306098]
[1754178300761,0.03,159.05,159.04,8.70306098]
[1754178300972,0.03,159.05,159.03,9.38306098]
[1754178301148,0.03,159.05,159.03,0.68]
[1754178301352,0.03,159.05,159.04,0.68]
[1754178302745,0.03,159.05,159.04,9.38306098]
[1754178303247,0.03,159.05,159.04,0.68]
[1754178305378,0.03,159.05,159.04,9.38306098]
[1754178305558,8.70306098,159.11,159.04,18.08612198]
[1754178305755,8.70306098,159.11,159.06,8.70306098]
[1754178305957,8.70306098,159.11,159.07,0.68]
[1754178306144,0.78566939,159.1,159.07,0.68]
[1754178306349,9.48873037,159.1,159.07,0.68]
[1754178306572,8.70306098,159.1,159.07,0.68]
[1754178306872,8.70306098,159.11,159.07,0.68]
[1754178307056,8.70306098,159.11,159.08,0.68]
[1754178307460,8.70306098,159.1,159.08,0.68]
[1754178307958,8.70306098,159.1,159.08,9.383061]
[1754178308364,0.81552127,159.13,159.08,9.383061]
[1754178308559,8.70306098,159.11,159.08,9.383061]
[1754178309563,0.81552127,159.13,159.09,0.68]
[1754178309765,8.70306098,159.12,159.09,0.68]
[1754178309971,0.78562001,159.11,159.09,0.68]
[1754178310165,8.70306098,159.12,159.09,0.68]
[1754178310754,0.81552127,159.13,159.08,8.703061]
[1754178310973,8.70306098,159.09,159.08,8.703061]
[1754178311462,8.70306098,159.09,159.03,0.68]
[1754178311666,8.70306098,159.07,159.05,8.703061]
[1754178311976,8.70306098,159.08,159.05,8.703061]
[1754178313686,8.70306098,159.07,159.03,0.68]
[1754178313872,8.70306098,159.05,159.02,18.908954]
[1754178314261,8.70306098,159.03,159.0,0.68]
[1754178314477,8.70306098,159.03,159.01,8.703061]
[1754178314881,8.70306098,159.02,158.98,0.68]
[1754178315183,8.70306098,159.02,158.96,55.36306098]
[1754178315184,8.70306098,159.02,158.99,9.383061]
[1754178315679,8.70306098,159.01,158.99,9.383061]
[1754178315866,0.85591637,159.05,158.99,9.383061]
[1754178315867,8.70306098,159.02,158.99,9.383061]
[1754178317779,8.70306098,159.02,158.99,8.703061]
[1754178317994,8.70306098,159.03,159.0,0.68]
[1754178318485,9.48887854,159.07,159.02,8.70306098]
[1754178318697,8.70306098,159.07,159.03,0.68]
[1754178318985,8.70306098,159.07,159.02,8.70306098]
[1754178319156,8.70306098,159.07,159.04,0.68]
[1754178319351,8.70306098,159.06,159.04,0.68]
[1754178319555,8.70306098,159.06,159.01,8.70306098]
[1754178319752,8.70306098,159.06,159.02,0.68]
[1754178319956,8.70306098,159.06,159.03,0.68]
[1754178320156,8.70306098,159.08,159.04,0.68]
[1754178320357,0.78581756,159.07,159.05,0.68]
[1754178320773,8.73306098,159.09,159.06,0.68]
[1754178320978,0.03,159.09,159.07,0.68]
[1754178321188,0.03,159.09,159.04,17.40612198]
[1754178321481,0.03,159.09,159.06,0.68]
[1754178321687,8.73306098,159.09,159.06,0.68]
[1754178322699,0.03,159.09,159.07,0.68]
[1754178323459,0.03,159.09,159.08,9.38306098]
[1754178323693,0.03,159.13,159.08,9.38306098]
[1754178323997,0.03,159.13,159.1,8.70306098]
[1754178324294,0.03,159.13,159.11,0.68]
[1754178324510,0.03,159.13,159.11,9.38306098]
[1754178324796,0.03,159.13,159.12,8.70306098]
[1754178324967,0.03,159.13,159.12,9.38306098]
[1754178326485,0.03,159.13,159.12,35.38306098]
[1754178330878,0.03,159.13,159.12,52.16774495]
[1754178331270,0.03,159.13,159.12,28.68655795]
[1754178331825,0.03,159.15,159.14,42.78468397]
[1754178331992,0.03,159.17,159.15,16.78468397]
[1754178332304,0.03,159.19,159.18,42.78468397]
[1754178332608,0.1,159.24,159.18,98.04774495]
[1754178332804,0.1,159.24,159.19,0.44275933]
[1754178332992,0.1,159.24,159.19,1.15275933]
[1754178333177,0.1,159.24,159.2,0.71]
[1754178333700,0.1,159.24,159.21,0.71]
[1754178333886,0.1,159.24,159.21,8.70306098]
[1754178334893,0.1,159.24,159.2,8.70306098]
[1754178335079,0.16,159.23,159.19,9.747793]
[1754178335283,8.86306098,159.22,159.19,9.747793]
[1754178335690,8.86306098,159.22,159.17,8.70306098]
[1754178335911,0.94512656,159.21,159.19,8.863061]
[1754178336210,8.86306098,159.2,159.16,46.54]
[1754178337091,8.70306098,159.18,159.16,55.243061]
[1754178337292,8.70306098,159.18,159.13,8.70306098]
[1754178337511,8.70306098,159.18,159.15,18.893472]
[1754178337808,8.70306098,159.18,159.13,9.41306098]
[1754178338004,8.70306098,159.18,159.14,0.71]
[1754178338408,0.16,159.17,159.12,46.54]
[1754178338597,8.70306098,159.16,159.12,46.54]
[1754178339209,8.86306098,159.16,159.12,46.54]
[1754178340222,8.70306098,159.19,159.14,8.70306098]
[1754178340429,8.70306098,159.19,159.15,0.71]
[1754178340588,8.70306098,159.19,159.14,8.70306098]
[1754178340894,8.70306098,159.19,159.16,0.71]
[1754178342017,8.70306098,159.19,159.14,9.41306098]
[1754178342204,8.70306098,159.19,159.15,0.71]
[1754178342393,8.70306098,159.19,159.16,0.71]
[1754178342590,8.70306098,159.2,159.14,8.70306098]
[1754178342918,8.70306098,159.2,159.17,0.71]
[1754178343092,8.70306098,159.2,159.15,0.71]
[1754178343292,8.70306098,159.19,159.15,0.71]
[1754178343708,0.88497864,159.24,159.14,8.70306098]
[1754178343908,8.70306098,159.19,159.15,0.71]
[1754178344220,9.64833551,159.18,159.12,55.95306098]
[1754178345195,9.48833551,159.18,159.12,55.95306098]
[1754178345992,8.70306098,159.18,159.12,55.95306098]
[1754178346328,8.70306098,159.18,159.13,0.71]
[1754178346504,8.70306098,159.18,159.14,0.71]
[1754178347112,0.16,159.22,159.15,0.71]
[1754178347306,8.70306098,159.19,159.15,0.71]
[1754178347513,0.16,159.21,159.14,8.70306098]
[1754178347821,8.70306098,159.2,159.16,0.71]
[1754178348031,8.70306098,159.2,159.14,8.70306098]
[1754178348210,8.70306098,159.2,159.17,0.71]
[1754178349114,8.70306098,159.2,159.15,0.71]
[1754178349329,8.70306098,159.19,159.15,0.71]
[1754178349909,9.48833551,159.18,159.13,9.41306098]
[1754178350115,8.70306098,159.18,159.14,0.71]
[1754178350326,8.70306098,159.17,159.12,47.25]
[1754178350554,8.70306098,159.17,159.12,46.54]
[1754178350747,8.86306098,159.18,159.13,0.71]
[1754178350944,8.70306098,159.18,159.14,0.71]
[1754178351450,8.70306098,159.18,159.12,46.54]
[1754178351743,8.70306098,159.16,159.11,9.41306098]
[1754178351914,8.70306098,159.16,159.11,8.70306098]
[1754178352113,8.70306098,159.16,159.12,0.71]
[1754178352518,8.70306098,159.17,159.11,8.70306098]
[1754178352814,8.70306098,159.18,159.13,0.71]
[1754178353024,8.70306098,159.18,159.12,8.70306098]
[1754178353025,8.70306098,159.18,159.14,0.71]
[1754178353931,0.78532386,159.17,159.12,8.70306098]
[1754178354116,0.78532386,159.17,159.13,0.71]
[1754178354439,9.48838484,159.17,159.13,0.71]
[1754178355231,8.70306098,159.17,159.13,0.71]
[1754178355441,8.70306098,159.17,159.12,8.70306098]
[1754178355608,8.70306098,159.17,159.14,0.71]
[1754178355942,8.70306098,159.18,159.14,0.71]
[1754178356106,8.70306098,159.19,159.15,0.71]
[1754178356824,5.93398355,159.19,159.15,0.71]
[1754178358226,5.93398355,159.19,159.14,5.93398355]
[1754178358540,5.93398355,159.2,159.16,0.71]
[1754178358841,0.78507725,159.22,159.15,5.93398355]
[1754178358842,5.93398355,159.21,159.15,5.93398355]
[1754178359134,0.78517587,159.2,159.17,0.71]
[1754178359845,6.71915942,159.2,159.17,0.71]
[1754178360143,6.71915942,159.2,159.13,32.64398355]
[1754178360144,6.09398355,159.19,159.13,32.64398355]
[1754178360343,5.93398355,159.15,159.12,0.06]
[1754178360636,6.09398355,159.15,159.12,0.06]
[1754178360820,5.93398355,159.15,159.12,0.06]
[1754178361019,5.93398355,159.13,159.12,0.06]
[1754178362737,5.93398355,159.14,159.12,0.06]
[1754178362946,8.708936,159.16,159.12,0.76]
[1754178363112,9.49435855,159.15,159.12,0.76]
[1754178363312,9.49435855,159.15,159.12,0.06]
[1754178363513,8.708936,159.15,159.12,0.06]
[1754178363730,8.708936,159.16,159.13,0.7]
[1754178364046,0.78517587,159.2,159.15,8.708936]
[1754178364215,9.49411187,159.2,159.16,0.7]
[1754178364415,8.708936,159.19,159.14,8.708936]
[1754178364617,8.708936,159.19,159.14,0.7]
[1754178364940,8.708936,159.2,159.15,0.7]
[1754178365116,8.708936,159.19,159.15,0.7]
[1754178365711,8.708936,159.2,159.15,8.708936]
[1754178365912,8.708936,159.2,159.16,0.7]
[1754178366230,8.868936,159.19,159.12,0.06]
[1754178366418,8.708936,159.17,159.12,0.76]
[1754178366736,8.708936,159.17,159.12,9.468936]
[1754178366919,8.708936,159.15,159.12,0.06]
[1754178367124,8.708936,159.13,159.12,0.06]
[1754178367528,8.708936,159.14,159.12,0.06]
[1754178368142,0.7853732,159.16,159.12,0.76]
[1754178368328,8.708936,159.15,159.12,0.06]
[1754178369111,8.708936,159.15,159.12,0.76]
[1754178369419,8.708936,159.17,159.12,0.06]
[1754178369612,8.708936,159.17,159.12,0.76]
[1754178371041,8.708936,159.14,159.12,0.06]
[1754178371236,5.16006993,159.16,159.12,0.06]
[1754178371237,9.49445727,159.13,159.12,0.06]
[1754178371743,0.94552127,159.13,159.12,0.06]
[1754178372114,9.65445727,159.13,159.12,0.06]
[1754178372316,16.78468397,159.12,159.0,3.07533482]
[1754178372545,8.708936,159.04,159.0,0.7]
[1754178372731,8.708936,159.05,159.01,0.7]
[1754178372932,8.708936,159.06,159.01,0.7]
[1754178373141,8.708936,159.06,159.02,0.7]
[1754178373452,0.78591637,159.05,159.02,0.7]
[1754178373653,8.708936,159.06,159.02,0.7]
[1754178373821,0.78576816,159.08,159.03,0.7]
[1754178374177,8.708936,159.08,159.04,0.7]
[1754178374442,8.708936,159.09,159.05,0.7]
[1754178374617,8.708936,159.09,159.04,8.708936]
[1754178374818,8.708936,159.09,159.03,8.708936]
[1754178375048,8.708936,159.05,159.01,0.7]
[1754178375255,8.708936,159.05,159.0,34.708936]
[1754178375425,8.708936,159.05,159.02,0.7]
[1754178375619,8.708936,159.06,159.02,0.7]
[1754178376162,0.78562001,159.11,159.03,9.408936]
[1754178376441,8.708936,159.08,159.03,8.708936]
[1754178376641,0.78562001,159.11,159.05,8.708936]
[1754178376852,8.708936,159.11,159.06,0.7]
[1754178377050,8.708936,159.12,159.07,9.408936]
[1754178377223,8.708936,159.13,159.08,0.7]
[1754178377655,8.708936,159.12,159.08,0.7]
[1754178377955,9.49450663,159.12,159.08,0.7]
[1754178378253,8.708936,159.13,159.07,8.708936]
[1754178378452,0.7853732,159.16,159.12,8.708936]
[1754178378672,8.708936,159.17,159.13,0.7]
[1754178379527,0.7853732,159.16,159.13,0.7]
[1754178379754,0.7853732,159.16,159.12,8.708936]
[1754178380132,0.7853732,159.16,159.12,9.408936]
[1754178380533,8.708936,159.17,159.13,0.7]
[1754178380735,8.708936,159.18,159.13,0.7]
[1754178380934,0.78532386,159.17,159.13,0.7]
[1754178381130,9.49425986,159.17,159.12,8.708936]
[1754178381447,8.708936,159.15,159.09,81.148936]
[1754178381747,8.708936,159.12,159.09,46.44]
[1754178382255,8.708936,159.13,159.07,8.708936]
[1754178382444,9.49455601,159.11,159.06,0.7]
[1754178382756,0.78562001,159.11,159.06,9.408936]
[1754178382933,0.16,159.12,159.06,9.408936]
[1754178383337,0.16,159.12,159.05,8.708936]
[1754178383542,8.708936,159.12,159.07,8.708936]
[1754178383956,8.708936,159.12,159.08,0.7]
[1754178384652,8.708936,159.13,159.09,0.7]
[1754178385048,0.78557063,159.12,159.09,0.7]
[1754178385253,8.708936,159.12,159.09,0.7]
[1754178385861,9.49455601,159.11,159.07,0.7]
[1754178386062,8.708936,159.1,159.04,9.468936]
[1754178386566,8.708936,159.1,159.04,0.76]
[1754178386762,8.708936,159.1,159.04,9.468936]
[1754178387978,8.708936,159.06,159.04,0.06]
[1754178388178,26.0,159.12,159.04,0.06]
[1754178388179,9.49485237,159.05,159.04,0.06]
[1754178388494,0.78562001,159.11,159.04,0.06]
[1754178388635,8.708936,159.07,159.04,0.06]
[1754178389282,8.708936,159.07,159.05,0.7]
[1754178389439,8.708936,159.07,159.04,0.06]
[1754178389771,8.708936,159.07,159.04,0.76]
[1754178389935,0.94562001,159.11,159.05,0.7]
[1754178390134,8.708936,159.09,159.05,0.7]
[1754178390371,0.78562001,159.11,159.05,0.7]
[1754178390372,8.708936,159.1,159.06,0.7]
[1754178392670,8.708936,159.08,159.04,0.73]
[1754178393842,8.708936,159.07,159.04,0.06]
[1754178394744,8.708936,159.08,159.04,0.73]
[1754178396445,8.708936,159.07,159.04,0.06]
[1754178396648,9.49480296,159.06,159.04,0.06]
[1754178396950,8.708936,159.06,159.04,0.06]
[1754178397161,8.708936,159.07,159.04,0.06]
[1754178397469,0.78562001,159.11,159.05,9.378936]
[1754178397853,8.708936,159.1,159.05,9.378936]
[1754178398051,8.708936,159.1,159.06,0.67]
[1754178398869,8.708936,159.1,159.05,8.708936]
[1754178399070,0.94557063,159.12,159.04,55.168936]
[1754178399272,8.708936,159.06,159.04,46.46]
[1754178399666,8.708936,159.06,159.04,0.06]
[1754178401082,8.868936,159.06,159.04,0.06]
[1754178401255,8.708936,159.06,159.04,0.06]
[1754178401657,8.708936,159.07,159.04,0.06]
[1754178402858,8.708936,159.08,159.04,0.06]
[1754178403063,8.708936,159.09,159.05,0.67]
[1754178403752,8.708936,159.09,159.04,0.06]
[1754178403954,9.49465477,159.09,159.04,0.73]
[1754178404284,8.708936,159.08,159.04,0.73]
[1754178404882,9.49470416,159.08,159.04,0.73]
[1754178405087,8.708936,159.08,159.04,0.73]
[1754178406083,8.708936,159.09,159.05,0.67]
[1754178406280,3.28124432,159.16,159.05,9.378936]
[1754178406281,9.49455601,159.11,159.05,9.378936]
[1754178406481,0.78542255,159.15,159.08,8.708936]
[1754178406777,8.708936,159.14,159.09,9.378936]
[1754178406984,9.49435855,159.15,159.1,0.67]
[1754178407685,0.78542255,159.15,159.11,9.378936]
[1754178408566,8.708936,159.14,159.09,8.708936]
[1754178408785,8.708936,159.15,159.1,9.378936]
[1754178409093,8.708936,159.15,159.11,0.67]
[1754178409263,8.708936,159.16,159.11,8.708936]
[1754178409465,8.738936,159.17,159.12,9.378936]
[1754178409693,8.738936,159.17,159.13,0.67]
[1754178409989,0.7853732,159.16,159.13,0.67]
[1754178410379,0.03,159.17,159.13,0.67]
[1754178410594,0.03,159.17,159.14,0.67]
[1754178410779,0.81532386,159.17,159.14,0.67]
[1754178411379,9.52425986,159.17,159.12,9.378936]
[1754178411593,0.81532386,159.17,159.13,0.67]
[1754178411781,0.03,159.17,159.14,0.67]
[1754178412179,0.03,159.17,159.12,8.708936]
[1754178412390,0.03,159.17,159.16,8.708936]
[1754178412870,0.03,159.17,159.16,9.378936]
[1754178413601,0.03,159.17,159.16,0.67]
[1754178413779,0.03,159.17,159.16,9.378936]
[1754178418015,0.03,159.17,159.15,48.838971]
[1754178418181,0.03,159.17,159.15,57.547907]
[1754178418505,0.03,159.17,159.15,58.217907]
[1754178418708,0.03,159.17,159.15,49.508971]
[1754178418880,0.03,159.17,159.15,55.028936]
[1754178419200,0.03,159.17,159.16,0.67]
[1754178419403,0.03,159.17,159.16,9.378936]
[1754178421883,0.03,159.17,159.16,0.67]
[1754178422087,0.03,159.17,159.15,55.028936]
[1754178422315,0.03,159.17,159.15,55.708936]
[1754178422486,0.03,159.17,159.16,0.68]
[1754178422689,0.03,159.17,159.16,9.388936]
[1754178423416,0.03,159.19,159.16,35.388936]
[1754178423594,0.03,159.19,159.18,8.708936]
[1754178423906,0.1,159.24,159.2,26.0]
[1754178424084,0.1,159.24,159.23,8.708936]
[1754178424492,0.1,159.24,159.23,9.388936]
[1754178425188,0.1,159.24,159.23,14.05876917]
[1754178427087,0.1,159.24,159.23,5.34983317]
[1754178427284,0.1,159.24,159.23,9.388936]
[1754178427509,0.1,159.24,159.23,14.05876917]
[1754178427705,0.1,159.24,159.23,5.34983317]
[1754178428013,0.1,159.24,159.21,54.988936]
[1754178428188,0.1,159.24,159.22,11.226956]
[1754178430312,0.1,159.24,159.22,2.51802]
[1754178430492,0.1,159.24,159.21,46.28]
[1754178430688,0.1,159.24,159.21,54.988936]
[1754178431005,0.1,159.24,159.21,55.668936]
[1754178433216,0.1,159.24,159.23,8.708936]
[1754178433809,0.1,159.24,159.23,9.388936]
[1754178434517,0.1,159.24,159.22,2.517545]
[1754178434721,0.1,159.24,159.23,9.388936]
[1754178436595,0.1,159.24,159.23,9.83140707]
[1754178437798,0.1,159.24,159.23,31.26687981]
[1754178438215,0.1,159.28,159.26,26.0]
[1754178438538,0.1,159.28,159.27,60.01742013]
[1754178439018,0.1,159.28,159.27,60.69742013]
[1754178440137,0.1,159.28,159.27,47.32211216]
[1754178440321,0.1,159.28,159.27,72.88]
[1754178440494,0.1,159.28,159.27,81.588936]
[1754178443019,0.1,159.28,159.27,72.2]
[1754178443343,0.1,159.28,159.27,48.717228]
[1754178443631,0.35,159.28,159.27,46.2]
[1754178444152,0.1,159.28,159.27,46.2]
[1754178445152,0.35,159.28,159.27,46.2]
[1754178445660,0.1,159.28,159.27,46.2]
[1754178447575,9.84371751,159.28,159.24,8.958936]
[1754178447726,8.708936,159.25,159.22,46.24]
[1754178447924,8.708936,159.25,159.22,72.24]
[1754178448439,8.708936,159.24,159.22,81.048936]
[1754178448964,8.708936,159.24,159.22,72.24]
[1754178449463,8.958936,159.23,159.22,46.24]
[1754178449622,8.958936,159.23,159.22,0.06]
[1754178450748,8.958936,159.23,159.21,0.06]
[1754178450749,25.74361997,159.23,159.21,0.06]
[1754178450924,13.94440425,159.22,159.21,0.06]
[1754178452335,13.69440425,159.22,159.21,0.06]
[1754178452556,9.49401325,159.22,159.21,0.06]
[1754178453078,8.708936,159.23,159.21,0.06]
[1754178453370,9.49401325,159.22,159.21,0.06]
[1754178453532,9.74401325,159.22,159.21,0.06]
[1754178453734,8.958936,159.22,159.21,0.06]
[1754178453935,13.16577298,159.22,159.21,0.06]
[1754178455767,8.708936,159.22,159.21,0.06]
[1754178455955,8.958936,159.22,159.21,0.06]
[1754178456434,13.16907844,159.22,159.21,0.06]
[1754178457152,8.958936,159.22,159.21,0.06]
[1754178457775,8.708936,159.22,159.21,0.06]
[1754178458371,8.958936,159.22,159.21,0.06]
[1754178458759,13.17026694,159.22,159.21,0.06]
[1754178459496,12.92026694,159.22,159.21,0.06]
[1754178459707,8.708936,159.22,159.21,0.06]
[1754178462499,8.708936,159.22,159.21,0.76]
[1754178464564,8.708936,159.24,159.21,0.76]
[1754178464871,8.708936,159.25,159.21,0.76]
[1754178465478,9.49376679,159.27,159.22,8.708936]
[1754178465711,8.708936,159.26,159.23,0.7]
[1754178466004,8.708936,159.27,159.23,0.7]
[1754178466300,8.708936,159.26,159.23,0.7]
[1754178467293,8.708936,159.24,159.21,0.76]
[1754178467493,8.708936,159.24,159.22,0.7]
[1754178467689,8.708936,159.25,159.23,0.7]
[1754178468406,8.708936,159.26,159.24,0.7]
[1754178468615,8.738936,159.26,159.25,0.7]
[1754178468818,0.03,159.26,159.25,0.7]
[1754178473513,0.03,159.26,159.25,9.408936]
[1754178474491,0.03,159.26,159.25,0.7]
[1754178476604,0.03,159.26,159.25,9.408936]
[1754178477619,0.03,159.26,159.25,14.08889885]
[1754178477994,0.03,159.26,159.25,9.408936]
[1754178478617,0.03,159.26,159.25,14.08869811]
[1754178478826,0.03,159.26,159.25,6.62540055]
[1754178481698,5.95540055,159.26,159.22,0.66]
[1754178481891,5.92540055,159.23,159.21,0.06]
[1754178482607,5.92540055,159.24,159.21,0.06]
[1754178483405,5.92540055,159.22,159.21,0.06]
[1754178483631,6.17540055,159.22,159.21,0.06]
[1754178484535,0.81488007,159.26,159.21,0.06]
[1754178484536,1.06488007,159.26,159.21,0.72]
[1754178484836,5.92540055,159.24,159.21,5.40608334]
[1754178485007,5.92540055,159.22,159.21,0.06]
[1754178486437,5.92540055,159.23,159.21,0.72]
[1754178486750,5.92540055,159.24,159.21,0.06]
[1754178487037,5.92540055,159.24,159.22,0.66]
[1754178487251,5.92540055,159.24,159.21,0.72]
[1754178487605,5.92540055,159.24,159.21,5.4091317]
[1754178487802,5.92540055,159.24,159.21,0.72]
[1754178488322,5.92540055,159.24,159.22,4.68913314]
[1754178488535,5.92540055,159.24,159.22,5.34913314]
[1754178490218,0.03,159.23,159.22,5.34913314]
[1754178490736,0.03,159.23,159.22,4.68913314]
[1754178490911,0.03,159.23,159.22,4.69030406]
[1754178491107,0.03,159.23,159.22,5.35030406]
[1754178491538,0.03,159.23,159.22,5.3510346]
[1754178492017,0.03,159.23,159.22,4.6910346]
[1754178492218,5.95540055,159.23,159.22,4.6910346]
[1754178492518,6.20540055,159.23,159.21,0.06]
[1754178492720,6.7104778,159.22,159.21,0.06]
[1754178492933,6.7104778,159.22,159.21,4.7530615]
[1754178493285,6.7104778,159.22,159.21,0.06]
[1754178493418,6.9604778,159.22,159.21,0.06]
[1754178494425,29.67056232,159.22,159.19,0.06]
[1754178494638,37.8508011,159.2,159.19,0.06]
[1754178494851,42.85814501,159.2,159.19,0.06]
[1754178495037,43.10814501,159.2,159.19,0.06]
[1754178495368,16.78468397,159.19,159.12,0.06]
[1754178495569,5.92540055,159.14,159.12,0.06]
[1754178495869,6.71092182,159.13,159.12,0.06]
[1754178496516,5.92540055,159.13,159.12,0.06]
[1754178497526,0.25,159.15,159.12,0.06]
[1754178497761,5.92540055,159.13,159.12,0.06]
[1754178498652,0.25,159.13,159.12,0.06]
[1754178498840,6.96092182,159.13,159.12,0.06]
[1754178499043,23.74560579,159.13,159.12,0.06]
[1754178499238,27.95640677,159.13,159.12,0.06]
[1754178499556,23.74560579,159.13,159.12,0.06]
[1754178501961,16.78468397,159.12,159.1,0.06]
[1754178502165,58.67642111,159.11,159.07,0.2]
[1754178502341,22.71008452,159.08,159.07,0.2]
[1754178502541,5.92540055,159.06,159.05,0.2]
[1754178502742,6.71126751,159.06,159.05,0.2]
[1754178503053,6.96126751,159.06,159.05,0.2]
[1754178504440,23.74595148,159.06,159.05,0.2]
[1754178504848,35.26864551,159.06,159.05,0.2]
[1754178505066,81.28864551,159.06,159.04,0.06]
[1754178505272,8.97404729,159.05,159.04,0.06]
[1754178505838,8.97404729,159.05,158.98,0.2]
[1754178506066,8.72404729,158.99,158.98,0.2]
[1754178508643,9.51026025,158.99,158.98,0.2]
[1754178509543,8.72404729,158.99,158.98,0.2]
[1754178511341,0.78611408,159.01,158.98,0.89]
[1754178511541,0.25,159.03,158.98,0.89]
[1754178511542,8.72404729,158.99,158.98,0.2]
[1754178512171,0.78606464,159.02,158.98,0.89]
[1754178512468,8.72404729,159.0,158.99,0.69]
[1754178513199,0.78606464,159.02,158.99,0.69]
[1754178513358,9.51001308,159.04,158.99,0.69]
[1754178513562,8.72404729,159.03,158.99,0.69]
[1754178513761,8.72404729,159.04,158.99,9.41404729]
[1754178513957,0.78601521,159.03,159.0,0.69]
[1754178516388,9.5100625,159.03,159.0,0.69]
[1754178516770,9.5100625,159.03,159.01,0.69]
[1754178516971,0.78601521,159.03,158.98,34.92404729]
[1754178517198,0.78601521,159.03,159.02,0.69]
[1754178518171,9.5100625,159.03,159.02,0.69]
[1754178518368,9.5100625,159.03,158.99,0.69]
[1754178518595,8.72404729,159.02,159.0,0.69]
[1754178518801,8.72404729,159.04,159.0,0.69]
[1754178519007,0.78601521,159.03,159.0,9.41404729]
[1754178519174,0.78596579,159.04,159.01,0.69]
[1754178519484,8.72404729,159.03,159.01,0.69]
[1754178520215,9.51011193,159.02,158.98,0.89]
[1754178520382,8.72404729,159.0,158.98,0.2]
[1754178520585,8.72404729,159.0,158.99,0.69]
[1754178520995,8.72404729,159.01,158.99,0.69]
[1754178521190,0.78616352,159.0,158.98,0.2]
[1754178521395,9.51021081,159.0,158.98,0.89]
[1754178521599,0.78616352,159.0,158.99,0.69]
[1754178522391,0.78606464,159.02,158.99,0.69]
[1754178522615,0.78601521,159.03,158.99,0.69]
[1754178522797,8.72404729,159.04,158.99,9.41404729]
[1754178522994,0.78601521,159.03,158.99,8.72404729]
[1754178523324,0.78601521,159.03,159.0,0.69]